lending/lending_fUSD_20250131
["ID","MTS","AMOUNT","RATE_DAILY","PERIOD"]
[351026785,1738299053768,-1820.16,0.00019452,3]
[351026786,1738299053779,-5939.11,0.00019452,3]
[351026787,1738299053790,-500.0,0.00019452,3]
[351026788,1738299053801,-1649.52,0.00019452,3]
[351026789,1738299053812,-610.24,0.00019452,3]
[351026790,1738299053822,-500.0,0.00019452,3]
[351026791,1738299053832,-593.66262669,0.00019452,3]
[351026792,1738299053843,-9053.87,0.00019452,3]
[351026793,1738299053853,-1635.62,0.00019452,3]
[351026794,1738299053863,-519.88,0.00019452,3]
[351026795,1738299053874,-1981.06,0.00019452,3]
[351026796,1738299053886,-894.77,0.00019452,3]
[351026797,1738299053898,-1268.14,0.00019452,3]
[351026798,1738299053908,-2058.02,0.00019452,3]
[351026799,1738299053921,-500.0,0.00019452,3]
[351026800,1738299054210,-500.0,0.00019452,3]
[351026801,1738299054226,-859.28,0.00019452,3]
[351026802,1738299054238,-500.0,0.00019452,3]
[351026803,1738299054248,-656.15,0.00019452,3]
[351026804,1738299054260,-2585.49,0.00019452,3]
[351026805,1738299054270,-811.38,0.00019452,3]
[351026806,1738299054282,-1690.32,0.00019452,3]
[351026807,1738299054292,-1207.54,0.00019452,3]
[351026808,1738299054302,-500.0,0.00019452,3]
[351026809,1738299054313,-500.0,0.00019452,3]
[351026810,1738299054323,-500.0,0.00019452,3]
[351026811,1738299054334,-3436.52,0.00019452,3]
[351026812,1738299054345,-602.5,0.00019452,3]
[351026813,1738299054360,-9830.2,0.00019452,3]
[351026814,1738299054369,-1232.64,0.00019452,3]
[351026815,1738299054380,-2036.65,0.00019452,3]
[351026816,1738299054391,-500.0,0.00019452,3]
[351026817,1738299054401,-500.0,0.00019452,3]
[351026818,1738299054412,-792.39,0.00019452,3]
[351026819,1738299054424,-390.87450962,0.00019452,3]
[351026820,1738299054435,-8464.83,0.00019452,3]
[351026821,1738299054446,-2555.02,0.00019452,3]
[351026822,1738299054456,-501.52,0.00019452,3]
[351026823,1738299054466,-500.0,0.00019452,3]
[351026824,1738299054476,-2209.11,0.00019452,3]
[351026825,1738299054487,-412.0,0.00019452,3]
[351026826,1738299054497,-500.0,0.00019452,3]
[351026827,1738299054508,-2532.25,0.00019452,3]
[351026828,1738299054518,-151.0,0.00019452,2]
[351026829,1738299054528,-500.0,0.00019452,3]
[351026830,1738299054539,-500.0,0.00019452,3]
[351026831,1738299054550,-1026.42,0.00019452,3]
[351026832,1738299054559,-151.0,0.00019452,2]
[351026833,1738299054570,-551.10265873,0.00019452,3]
[351026834,1738299054581,-500.0,0.00019452,3]
[351026835,1738299054591,-2000.51,0.00019452,3]
[351026836,1738299054601,-1017.08,0.00019452,3]
[351026837,1738299054611,-500.0,0.00019452,3]
[351026838,1738299054623,-1195.18,0.00019452,3]
[351026839,1738299054633,-2468.52,0.00019452,3]
[351026840,1738299054642,-3071.37,0.00019452,3]
[351026841,1738299054652,-500.0,0.00019452,3]
[351026842,1738299054663,-926.04,0.00019452,3]
[351026843,1738299054673,-500.0,0.00019452,3]
[351026844,1738299054683,-1655.56,0.00019452,3]
[351026845,1738299054693,-6728.49,0.00019452,3]
[351026846,1738299054703,-2231.66,0.00019452,3]
[351026847,1738299054713,-500.0,0.00019452,3]
[351026848,1738299054725,-2898.51,0.00019452,3]
[351026849,1738299054735,-1901.75,0.00019452,3]
[351026850,1738299054746,-1942.94,0.00019452,3]
[351026851,1738299054756,-2841.24,0.00019452,3]
[351026852,1738299054765,-500.0,0.00019452,3]
[351026853,1738299054775,-500.0,0.00019452,3]
[351026854,1738299054785,-500.0,0.00019452,3]
[351026855,1738299054794,-1290.78,0.00019452,3]
[351026856,1738299054805,-2687.21,0.00019452,3]
[351026857,1738299054814,-2882.95,0.00019452,3]
[351026858,1738299054824,-5544.58,0.00019452,3]
[351026859,1738299054833,-698.48,0.00019452,3]
[351026860,1738299054843,-2672.17,0.00019452,3]
[351026861,1738299054854,-1788.65,0.00019452,3]
[351026862,1738299054863,-500.0,0.00019452,3]
[351026863,1738299054874,-500.0,0.00019452,3]
[351026864,1738299054884,-500.0,0.00019452,3]
[351026865,1738299054895,-862.3,0.00019452,3]
[351026866,1738299054905,-151.0,0.00019452,2]
[351026867,1738299054915,-500.0,0.00019452,3]
[351026868,1738299054925,-1765.63,0.00019452,3]
[351026869,1738299054935,-4297.89,0.00019452,3]
[351026870,1738299054945,-151.0,0.00019452,2]
[351026871,1738299054956,-936.62,0.00019452,3]
[351026872,1738299054966,-500.0,0.00019452,3]
[351026873,1738299054976,-604.54476422,0.00019452,3]
[351026874,1738299054987,-796.04,0.00019452,3]
[351026875,1738299054996,-3552.42,0.00019452,3]
[351026876,1738299055006,-500.0,0.00019452,3]
[351026877,1738299055016,-556.83,0.00019452,3]
[351026878,1738299055027,-1236.16,0.00019452,3]
[351026879,1738299055037,-1953.65,0.00019452,3]
[351026880,1738299055049,-1618.43,0.00019452,3]
[351026881,1738299055058,-151.0,0.00019452,2]
[351026882,1738299055069,-500.0,0.00019452,3]
[351026883,1738299055079,-2720.7,0.00019452,3]
[351026884,1738299055089,-2074.78,0.00019452,3]
[351026885,1738299055100,-5835.75,0.00019452,3]
[351026886,1738299055109,-985.44,0.00019452,3]
[351026887,1738299055119,-500.0,0.00019452,3]
[351026888,1738299055129,-500.0,0.00019452,3]
[351026889,1738299055139,-4259.32,0.00019452,3]
[351026890,1738299055149,-2034.26,0.00019452,3]
[351026891,1738299055159,-151.0,0.00019452,2]
[351026892,1738299055169,-7176.0,0.00019452,3]
[351026893,1738299055179,-151.0,0.00019452,2]
[351026894,1738299055188,-11646.11,0.00019452,3]
[351026895,1738299055198,-500.0,0.00019452,3]
[351026896,1738299055209,-665.38,0.00019452,3]
[351026897,1738299055219,-500.0,0.00019452,3]
[351026898,1738299055229,-500.0,0.00019452,3]
[351026899,1738299055239,-1895.83,0.00019452,3]
[351026900,1738299055248,-6077.74,0.00019452,3]
[351026901,1738299055258,-500.0,0.00019452,3]
[351026902,1738299055268,-500.0,0.00019452,3]
[351026903,1738299055278,-500.0,0.00019452,3]
[351026904,1738299055288,-2659.18,0.00019452,3]
[351026905,1738299055297,-5998.91,0.00019452,3]
[351026906,1738299055308,-1856.54,0.00019452,3]
[351026907,1738299055318,-3761.46,0.00019452,3]
[351026908,1738299055328,-3264.01,0.00019452,3]
[351026909,1738299055338,-4160.05,0.00019452,3]
[351026910,1738299055350,-872.28,0.00019452,3]
[351026911,1738299055363,-791.68,0.00019452,3]
[351026912,1738299055373,-500.0,0.00019452,3]
[351026913,1738299055383,-2006.72,0.00019452,3]
[351026914,1738299055393,-520.13,0.00019452,3]
[351026915,1738299055405,-511.99,0.00019452,3]
[351026916,1738299055415,-5557.5,0.00019452,3]
[351026917,1738299055425,-553.15,0.00019452,3]
[351026918,1738299055435,-1673.04,0.00019452,3]
[351026919,1738299055446,-8189.28,0.00019452,3]
[351026920,1738299055457,-1054.76,0.00019452,2]
[351026921,1738299055468,-500.0,0.00019452,3]
[351026922,1738299055478,-3133.62,0.00019452,3]
[351026923,1738299055488,-2170.17,0.00019452,3]
[351026924,1738299055498,-2244.01,0.00019452,3]
[351026925,1738299055507,-1022.97,0.00019452,3]
[351026926,1738299055517,-1188.31,0.00019452,3]
[351026927,1738299055528,-500.0,0.00019452,3]
[351026928,1738299055538,-9625.22,0.00019452,3]
[351026929,1738299055548,-801.21,0.00019452,3]
[351026930,1738299055558,-750.68,0.00019452,3]
[351026931,1738299055568,-4251.21,0.00019452,3]
[351026932,1738299055578,-4221.66,0.00019452,3]
[351026933,1738299055590,-803.41,0.00019452,3]
[351026934,1738299055600,-500.0,0.00019452,3]
[351026935,1738299055611,-4997.48,0.00019452,3]
[351026936,1738299055621,-500.0,0.00019452,3]
[351026937,1738299055631,-3444.35,0.00019452,3]
[351026938,1738299055641,-500.0,0.00019452,3]
[351026939,1738299055650,-2011.22,0.00019452,3]
[351026940,1738299055660,-500.0,0.00019452,3]
[351026941,1738299055671,-335.7551522,0.00019452,3]
[351026942,1738299055681,-2761.89,0.00019452,3]
[351026943,1738299055692,-1916.93,0.00019452,3]
[351026944,1738299055702,-500.0,0.00019452,3]
[351026945,1738299055711,-7271.29,0.00019452,3]
[351026946,1738299055721,-1555.61,0.00019452,3]
[351026947,1738299055732,-500.0,0.00019452,3]
[351026948,1738299055742,-500.0,0.00019452,3]
[351026949,1738299055752,-1883.79,0.00019452,3]
[351026950,1738299055762,-986.83,0.00019452,3]
[351026951,1738299055771,-3326.8,0.00019452,3]
[351026952,1738299055783,-1054.93,0.00019452,3]
[351026953,1738299055793,-151.0,0.00019452,2]
[351026954,1738299055804,-3881.56,0.00019452,3]
[351026955,1738299055815,-500.0,0.00019452,3]
[351026956,1738299055824,-151.0,0.00019452,2]
[351026957,1738299055834,-500.0,0.00019452,3]
[351026958,1738299055844,-1045.33,0.00019452,3]
[351026959,1738299055854,-1902.38,0.00019452,3]
[351026960,1738299055864,-500.0,0.00019452,3]
[351026961,1738299055874,-3681.65,0.00019452,3]
[351026962,1738299055885,-1352.77,0.00019452,3]
[351026963,1738299055895,-500.0,0.00019452,3]
[351026964,1738299055906,-545.82,0.00019452,3]
[351026965,1738299055917,-500.0,0.00019452,3]
[351026966,1738299055926,-500.0,0.00019452,3]
[351026967,1738299055936,-2487.83,0.00019452,3]
[351026968,1738299055946,-626.2,0.00019452,3]
[351026969,1738299055957,-6399.13,0.00019452,3]
[351026970,1738299055967,-2398.15,0.00019452,3]
[351026971,1738299055978,-500.0,0.00019452,3]
[351026972,1738299055988,-500.0,0.00019452,3]
[351026973,1738299055998,-756.54,0.00019452,3]
[351026974,1738299056009,-500.0,0.00019452,3]
[351026975,1738299056020,-534.46,0.00019452,3]
[351026976,1738299056030,-2864.49,0.00019452,3]
[351026977,1738299056040,-1600.72,0.00019452,3]
[351026978,1738299056050,-2533.4,0.00019452,3]
[351026979,1738299056060,-1409.05,0.00019452,3]
[351026980,1738299056069,-500.0,0.00019452,3]
[351026981,1738299056079,-1389.68,0.00019452,3]
[351026982,1738299056089,-705.15,0.00019452,3]
[351026983,1738299056098,-500.0,0.00019452,3]
[351026984,1738299056108,-1057.09,0.00019452,3]
[351026985,1738299056118,-1598.55,0.00019452,3]
[351026986,1738299056129,-1346.59,0.00019452,3]
[351026987,1738299056138,-1481.14,0.00019452,3]
[351026988,1738299056149,-500.0,0.00019452,3]
[351026989,1738299056158,-592.78,0.00019452,3]
[351026990,1738299056168,-7368.92,0.00019452,3]
[351026991,1738299056177,-500.0,0.00019452,3]
[351026992,1738299056187,-943.62,0.00019452,3]
[351026993,1738299056197,-2272.07,0.00019452,3]
[351026994,1738299056207,-4736.21,0.00019452,3]
[351026995,1738299056217,-500.0,0.00019452,3]
[351026996,1738299056227,-500.0,0.00019452,3]
[351026997,1738299056236,-1442.22,0.00019452,3]
[351026998,1738299056246,-714.12,0.00019452,3]
[351026999,1738299056256,-500.0,0.00019452,2]
[351027000,1738299056266,-500.0,0.00019461,2]
[351027001,1738299056276,-150.0,0.00019468,2]
[351027002,1738299056287,-150.0,0.00019469,2]
[351027003,1738299056298,-150.0,0.00019472,2]
[351027004,1738299056308,-500.0,0.00019473,2]
[351027005,1738299056318,-168.66754733,0.00019477,2]
[351027006,1738299056329,-150.0,0.00019479,2]
[351027007,1738299056340,-500.0,0.0001948,2]
[351027008,1738299056350,-150.0,0.0001948,2]
[351027009,1738299056363,-20000.0,0.0001948,3]
[351027010,1738299056372,-150.0,0.00019485,2]
[351027011,1738299056382,-150.0,0.00019488,2]
[351027012,1738299056391,-150.0,0.0001949,2]
[351027013,1738299056402,-150.0,0.00019493,2]
[351027014,1738299056411,-2936.07681982,0.000195,2]
[351027015,1738299056421,-150.0,0.000195,2]
[351027016,1738299056431,-208.0,0.000195,2]
[351027017,1738299056441,-6394.21,0.000195,2]
[351027018,1738299056452,-1000.0,0.000195,2]
[351027019,1738299056461,-150.0,0.00019501,2]
[351027020,1738299056471,-150.0,0.00019502,2]
[351027021,1738299056480,-150.0,0.00019502,2]
[351027022,1738299056491,-500.0,0.00019507,2]
[351027023,1738299056500,-150.0,0.00019509,2]
[351027024,1738299056510,-150.0,0.00019509,2]
[351027025,1738299056519,-150.0,0.0001951,2]
[351027026,1738299056529,-150.0,0.00019512,2]
[351027027,1738299056539,-150.0,0.00019515,2]
[351027028,1738299056548,-150.0,0.00019518,2]
[351027029,1738299056558,-500.0,0.00019535,2]
[351027030,1738299056567,-2944.54037404,0.00019535,2]
[351027031,1738299056577,-150.0,0.00019537,2]
[351027032,1738299056586,-150.0,0.00019541,2]
[351027033,1738299056595,-150.0,0.00019557,2]
[351027034,1738299056605,-500.0,0.00019561,2]
[351027035,1738299056615,-500.0,0.00019562,2]
[351027036,1738299056698,-150.0,0.00019562,2]
[351027037,1738299056708,-150.0,0.00019574,2]
[351027038,1738299056718,-150.0,0.00019575,2]
[351027039,1738299056727,-150.0,0.00019575,2]
[351027040,1738299056738,-150.0,0.00019578,2]
[351027041,1738299056747,-614.56,0.00019588,2]
[351027042,1738299056757,-300.0,0.00019588,2]
[351027043,1738299056766,-2674.725176,0.00019589,3]
[351027044,1738299056776,-3784.297837,0.00019589,3]
[351027045,1738299056786,-152.930379,0.00019589,3]
[351027046,1738299056795,-500.0,0.00019589,3]
[351027047,1738299056804,-500.0,0.00019589,3]
[351027048,1738299056813,-500.0,0.00019589,3]
[351027049,1738299056825,-500.0,0.00019589,3]
[351027050,1738299056834,-500.0,0.00019589,3]
[351027051,1738299056843,-628.68,0.00019589,3]
[351027052,1738299056853,-500.0,0.00019589,3]
[351027053,1738299056862,-500.0,0.00019589,3]
[351027054,1738299056871,-500.0,0.00019589,3]
[351027055,1738299056880,-620.84,0.00019589,3]
[351027056,1738299056889,-500.0,0.00019589,3]
[351027057,1738299056897,-781.45,0.00019589,3]
[351027058,1738299056907,-500.0,0.00019589,3]
[351027059,1738299056916,-674.98,0.00019589,3]
[351027060,1738299056927,-500.0,0.00019589,3]
[351027061,1738299056938,-500.0,0.00019589,3]
[351027062,1738299056949,-500.0,0.00019589,3]
[351027063,1738299056959,-836.77,0.00019589,3]
[351027064,1738299056970,-796.11,0.00019589,3]
[351027065,1738299056980,-500.0,0.00019589,3]
[351027066,1738299056991,-653.86,0.00019589,3]
[351027067,1738299057001,-500.0,0.00019589,3]
[351027068,1738299057010,-541.96,0.00019589,3]
[351027069,1738299057019,-852.06,0.00019589,3]
[351027070,1738299057028,-500.0,0.00019589,3]
[351027071,1738299057038,-550.78,0.00019589,3]
[351027072,1738299057048,-819.44,0.00019589,3]
[351027073,1738299057058,-500.0,0.00019589,3]
[351027074,1738299057067,-869.85,0.00019589,3]
[351027075,1738299057077,-672.39,0.00019589,3]
[351027076,1738299057086,-644.45,0.00019589,3]
[351027077,1738299057095,-500.0,0.00019589,3]
[351027078,1738299057105,-507.34743614,0.00019589,3]
[351027079,1738299057114,-500.0,0.00019589,3]
[351027080,1738299057124,-500.0,0.00019589,3]
[351027081,1738299057133,-500.0,0.00019589,3]
[351027082,1738299057142,-476.03258157,0.00019589,3]
[351027083,1738299057151,-500.0,0.00019589,3]
[351027084,1738299057160,-500.0,0.00019589,3]
[351027085,1738299057170,-500.0,0.00019589,3]
[351027086,1738299057180,-500.0,0.00019589,3]
[351027087,1738299057190,-500.0,0.00019589,3]
[351027088,1738299057200,-877.19,0.00019589,3]
[351027089,1738299057209,-710.87,0.00019589,3]
[351027090,1738299057219,-500.0,0.00019589,3]
[351027091,1738299057228,-500.0,0.00019589,3]
[351027092,1738299057238,-949.5,0.00019589,3]
[351027093,1738299057247,-500.0,0.00019589,3]
[351027094,1738299057256,-500.0,0.00019589,3]
[351027095,1738299057266,-500.0,0.00019589,3]
[351027096,1738299057275,-956.22,0.00019589,3]
[351027097,1738299057284,-833.85,0.00019589,3]
[351027098,1738299057293,-500.0,0.00019589,3]
[351027099,1738299057302,-744.96,0.00019589,3]
[351027100,1738299057311,-500.0,0.00019589,3]
[351027101,1738299057320,-500.0,0.00019589,3]
[351027102,1738299057329,-834.81,0.00019589,3]
[351027103,1738299057338,-500.0,0.00019589,3]
[351027104,1738299057349,-513.386484,0.00019589,3]
[351027105,1738299057362,-500.0,0.00019589,3]
[351027106,1738299057371,-150.96184877,0.00019589,3]
[351027107,1738299057380,-762.69,0.00019589,3]
[351027108,1738299057391,-500.0,0.00019589,3]
[351027109,1738299057401,-506.8460636,0.00019589,3]
[351027110,1738299057410,-857.86,0.00019589,3]
[351027111,1738299057420,-720.28,0.00019589,3]
[351027112,1738299057431,-861.44,0.00019589,3]
[351027113,1738299057441,-500.0,0.00019589,3]
[351027114,1738299057450,-500.0,0.00019589,3]
[351027115,1738299057460,-794.46,0.00019589,3]
[351027116,1738299057470,-500.0,0.00019589,3]
[351027117,1738299057481,-500.0,0.00019589,3]
[351027118,1738299057491,-836.6,0.00019589,3]
[351027119,1738299057501,-1056.05,0.00019589,3]
[351027120,1738299057511,-500.0,0.00019589,3]
[351027121,1738299057521,-500.0,0.00019589,3]
[351027122,1738299057531,-500.0,0.00019589,3]
[351027123,1738299057541,-1975.72,0.00019589,3]
[351027124,1738299057551,-550.41,0.00019589,3]
[351027125,1738299057560,-646.04,0.00019589,3]
[351027126,1738299057570,-1374.92,0.00019589,3]
[351027127,1738299057579,-500.0,0.00019589,3]
[351027128,1738299057588,-1562.23,0.00019589,3]
[351027129,1738299057597,-582.75,0.00019589,3]
[351027130,1738299057606,-500.0,0.00019589,3]
[351027131,1738299057615,-1699.24,0.00019589,3]
[351027132,1738299057624,-1143.68,0.00019589,3]
[351027133,1738299057634,-714.3,0.00019589,3]
[351027134,1738299057644,-500.0,0.00019589,3]
[351027135,1738299057653,-1091.98,0.00019589,3]
[351027136,1738299057662,-500.0,0.00019589,3]
[351027137,1738299057671,-528.54368125,0.00019589,3]
[351027138,1738299057681,-746.89,0.00019589,3]
[351027139,1738299057690,-761.7,0.00019589,3]
[351027140,1738299057699,-500.0,0.00019589,3]
[351027141,1738299057708,-1544.26,0.00019589,3]
[351027142,1738299057718,-344.53264468,0.00019589,3]
[351027143,1738299057727,-840.64,0.00019589,3]
[351027144,1738299057739,-500.0,0.00019589,3]
[351027145,1738299057748,-1030.44,0.00019589,3]
[351027146,1738299057757,-500.0,0.00019589,3]
[351027147,1738299057766,-500.0,0.00019589,3]
[351027148,1738299057775,-500.0,0.00019589,3]
[351027149,1738299057784,-1827.84,0.00019589,3]
[351027150,1738299057795,-500.0,0.00019589,3]
[351027151,1738299057804,-500.0,0.00019589,3]
[351027152,1738299057813,-500.0,0.00019589,3]
[351027153,1738299057822,-853.78,0.00019589,3]
[351027154,1738299057832,-760.69,0.00019589,3]
[351027155,1738299057841,-736.44,0.00019589,3]
[351027156,1738299057850,-790.88,0.00019589,3]
[351027157,1738299057859,-560.56,0.00019589,3]
[351027158,1738299057869,-679.16,0.00019589,3]
[351027159,1738299057878,-686.18,0.00019589,3]
[351027160,1738299057887,-500.0,0.00019589,3]
[351027161,1738299057899,-500.0,0.00019589,3]
[351027162,1738299057910,-809.07,0.00019589,3]
[351027163,1738299057920,-500.0,0.00019589,3]
[351027164,1738299057930,-1169.86,0.00019589,3]
[351027165,1738299057941,-1310.16,0.00019589,3]
[351027166,1738299057959,-500.0,0.00019589,3]
[351027167,1738299057968,-670.18,0.00019589,3]
[351027168,1738299057978,-761.41,0.00019589,3]
[351027169,1738299057988,-522.35,0.00019589,3]
[351027170,1738299057997,-781.67,0.00019589,3]
[351027171,1738299058006,-738.64,0.00019589,3]
[351027172,1738299058016,-756.77,0.00019589,3]
[351027173,1738299058026,-1234.76,0.00019589,3]
[351027174,1738299058035,-665.57,0.00019589,3]
[351027175,1738299058044,-500.0,0.00019589,3]
[351027176,1738299058053,-1196.7,0.00019589,3]
[351027177,1738299058063,-500.0,0.00019589,3]
[351027178,1738299058072,-612.03,0.00019589,3]
[351027179,1738299058082,-500.0,0.00019589,3]
[351027180,1738299058091,-500.0,0.00019589,3]
[351027181,1738299058101,-1061.66,0.00019589,3]
[351027182,1738299058110,-500.0,0.00019589,3]
[351027183,1738299058120,-1262.21,0.00019589,3]
[351027184,1738299058129,-500.0,0.00019589,3]
[351027185,1738299058139,-1334.46,0.00019589,3]
[351027186,1738299058149,-591.47,0.00019589,3]
[351027187,1738299058159,-974.79,0.00019589,3]
[351027188,1738299058168,-500.0,0.00019589,3]
[351027189,1738299058178,-796.98,0.00019589,3]
[351027190,1738299058187,-500.0,0.00019589,3]
[351027191,1738299058199,-1412.16,0.00019589,3]
[351027192,1738299058210,-500.0,0.00019589,3]
[351027193,1738299058219,-848.62,0.00019589,3]
[351027194,1738299058231,-500.0,0.00019589,3]
[351027195,1738299058242,-500.0,0.00019589,3]
[351027196,1738299058251,-500.0,0.00019589,3]
[351027197,1738299058261,-502.18,0.00019589,3]
[351027198,1738299058271,-615.52,0.00019589,3]
[351027199,1738299058280,-726.49,0.00019589,3]
[351027200,1738299058290,-542.57,0.00019589,3]
[351027201,1738299058299,-1577.69,0.00019589,3]
[351027202,1738299058309,-667.3,0.00019589,3]
[351027203,1738299058318,-665.76,0.00019589,3]
[351027204,1738299058328,-811.49,0.00019589,3]
[351027205,1738299058337,-1699.26,0.00019589,3]
[351027206,1738299058348,-500.0,0.00019589,3]
[351027207,1738299058361,-500.0,0.00019589,3]
[351027208,1738299058371,-1904.8,0.00019589,3]
[351027209,1738299058380,-700.12,0.00019589,3]
[351027210,1738299058391,-1111.69,0.00019589,3]
[351027211,1738299058400,-500.0,0.00019589,3]
[351027212,1738299058410,-957.93,0.00019589,3]
[351027213,1738299058419,-809.7,0.00019589,3]
[351027214,1738299058429,-679.22,0.00019589,3]
[351027215,1738299058439,-1708.8,0.00019589,3]
[351027216,1738299058449,-726.57,0.00019589,3]
[351027217,1738299058459,-500.0,0.00019589,3]
[351027218,1738299058473,-668.58,0.00019589,3]
[351027219,1738299058483,-500.0,0.00019589,3]
[351027220,1738299058495,-1321.06,0.00019589,3]
[351027221,1738299058505,-1409.58,0.00019589,3]
[351027222,1738299058515,-500.0,0.00019589,3]
[351027223,1738299058525,-1167.26,0.00019589,3]
[351027224,1738299058536,-500.0,0.00019589,3]
[351027225,1738299058547,-500.0,0.00019589,3]
[351027226,1738299058557,-829.24,0.00019589,3]
[351027227,1738299058567,-500.0,0.00019589,3]
[351027228,1738299058577,-500.0,0.00019589,3]
[351027229,1738299058588,-500.0,0.00019589,3]
[351027230,1738299058601,-500.0,0.00019589,3]
[351027231,1738299058612,-1072.57,0.00019589,3]
[351027232,1738299058622,-848.6,0.00019589,3]
[351027233,1738299058633,-533.65,0.00019589,3]
[351027234,1738299058643,-989.0,0.00019589,3]
[351027235,1738299058654,-938.63,0.00019589,3]
[351027236,1738299058664,-151.0,0.00019589,2]
[351027237,1738299058674,-216.364215,0.00019589,2]
[351027238,1738299058685,-659.57,0.00019589,3]
[351027239,1738299058696,-1591.83,0.00019589,3]
[351027240,1738299058709,-1045.16,0.00019589,3]
[351027241,1738299058719,-939.22,0.00019589,3]
[351027242,1738299058730,-1562.49,0.00019589,3]
[351027243,1738299058742,-959.01,0.00019589,3]
[351027244,1738299058752,-500.0,0.00019589,3]
[351027245,1738299058762,-458.18171447,0.00019589,3]
[351027246,1738299058772,-500.0,0.00019589,3]
[351027247,1738299058784,-804.57,0.00019589,3]
[351027248,1738299058794,-2005.53,0.00019589,3]
[351027249,1738299058804,-2222.06,0.00019589,3]
[351027250,1738299058814,-500.0,0.00019589,3]
[351027251,1738299058826,-500.0,0.00019589,3]
[351027252,1738299058837,-1353.58,0.00019589,3]
[351027253,1738299058847,-536.88,0.00019589,3]
[351027254,1738299058858,-500.0,0.00019589,3]
[351027255,1738299058868,-940.85,0.00019589,3]
[351027256,1738299058878,-1989.46,0.00019589,3]
[351027257,1738299058888,-150.0,0.00019589,4]
[351027258,1738299058897,-500.0,0.00019589,3]
[351027259,1738299058909,-1867.28,0.00019589,3]
[351027260,1738299058919,-1356.74,0.00019589,3]
[351027261,1738299058928,-573.65,0.00019589,3]
[351027262,1738299058939,-500.0,0.00019589,3]
[351027263,1738299058948,-502.05,0.00019589,3]
[351027264,1738299058959,-150.0,0.00019589,4]
[351027265,1738299058974,-1527.15,0.00019589,3]
[351027266,1738299058984,-1676.52,0.00019589,3]
[351027267,1738299058994,-500.0,0.00019589,3]
[351027268,1738299059004,-500.0,0.00019589,3]
[351027269,1738299059015,-500.0,0.00019589,3]
[351027270,1738299059024,-500.0,0.00019589,3]
[351027271,1738299059035,-500.0,0.00019589,3]
[351027272,1738299059044,-150.0,0.00019589,4]
[351027273,1738299059054,-737.88,0.00019589,3]
[351027274,1738299059064,-500.0,0.00019589,3]
[351027275,1738299059074,-151.0,0.00019589,2]
[351027276,1738299059084,-268.789741,0.00019589,2]
[351027277,1738299059094,-500.0,0.00019589,3]
[351027278,1738299059104,-1684.23,0.00019589,3]
[351027279,1738299059115,-1222.55,0.00019589,3]
[351027280,1738299059126,-730.53,0.00019589,3]
[351027281,1738299059136,-518.03,0.00019589,3]
[351027282,1738299059147,-500.0,0.00019589,3]
[351027283,1738299059157,-692.99,0.00019589,3]
[351027284,1738299059167,-500.0,0.00019589,3]